bitfinex/quotes_SOLUSD_20240601
["timestamp","ask_amount","ask_price","bid_price","bid_amount"]
[1717205436447,5.52,166.85,166.79,40.0519]
[1717205437847,5.52,166.86,166.8,5.52]
[1717205443437,5.52,166.85,166.8,5.52]
[1717205443637,5.52,166.85,166.79,40.0519]
[1717205444651,5.52,166.86,166.8,23.52]
[1717205444846,7.7373,166.87,166.81,5.69]
[1717205446459,7.7373,166.87,166.81,0.17]
[1717205446963,2.2173,166.87,166.81,0.17]
[1717205447256,0.8115417,166.91,166.81,78.34]
[1717205447257,2.2171,166.89,166.81,78.34]
[1717205447555,5.52,166.88,166.81,83.86]
[1717205447765,7.7371,166.88,166.81,83.86]
[1717205448253,7.7371,166.88,166.81,119.88]
[1717205448459,7.7371,166.88,166.82,23.52]
[1717205449160,7.7371,166.88,166.82,5.52]
[1717205449355,5.52,166.87,166.81,5.86]
[1717205452565,5.52,166.87,166.81,0.34]
[1717205452856,5.52,166.87,166.81,5.86]
[1717205454065,5.52,166.87,166.81,0.34]
[1717205454361,5.52,166.86,166.81,0.17]
[1717205454537,5.52,166.86,166.8,5.52]
[1717205454738,5.52,166.86,166.79,0.34]
[1717205454936,2.2171,166.88,166.8,5.52]
[1717205455258,5.52,166.86,166.8,5.52]
[1717205456464,2.2171,166.88,166.8,5.52]
[1717205456650,5.52,166.86,166.8,5.52]
[1717205458959,5.52,166.86,166.79,0.34]
[1717205459166,5.52,166.85,166.79,5.69]
[1717205460252,2.2172,166.87,166.78,24.1763]
[1717205460253,5.52,166.84,166.78,6.1763]
[1717205460655,5.52,166.84,166.78,11.6963]
[1717205461451,5.52,166.84,166.78,5.52]
[1717205461647,2.2175,166.85,166.76,18.0]
[1717205461855,5.52,166.82,166.76,5.52]
[1717205462549,2.2174,166.87,166.77,5.52]
[1717205462750,2.2174,166.87,166.76,78.17]
[1717205463051,2.2174,166.87,166.78,5.52]
[1717205463450,2.2174,166.86,166.78,5.52]
[1717205463877,2.2175,166.85,166.77,5.69]
[1717205464380,2.2175,166.85,166.77,5.52]
[1717205465259,5.52,166.82,166.76,5.69]
[1717205465574,2.2178,166.83,166.72,36.02]
[1717205465763,5.52,166.79,166.73,5.52]
[1717205466175,4.6687,166.85,166.71,60.0]
[1717205466360,5.52,166.77,166.71,5.52]
[1717205466668,16.79832711,166.85,166.73,5.52]
[1717205466870,6.8862,166.85,166.76,5.52]
[1717205467077,5.52,166.81,166.76,5.52]
[1717205467251,5.52,166.81,166.75,5.52]
[1717205467448,5.52,166.82,166.76,5.52]
[1717205470579,2.2177,166.84,166.76,5.52]
[1717205470760,5.52,166.82,166.76,5.52]
[1717205471854,7.738,166.81,166.74,18.34]
[1717205472060,7.738,166.81,166.75,5.86]
[1717205473386,5.52,166.8,166.75,0.34]
[1717205473876,5.52,166.8,166.72,78.0]
[1717205474075,5.52,166.8,166.74,5.52]
[1717205474377,5.02,166.79,166.74,5.52]
[1717205474575,5.02,166.79,166.72,18.0]
[1717205474798,5.52,166.78,166.72,5.52]
[1717205474961,7.7384,166.78,166.7,6.4139]
[1717205475164,5.52,166.76,166.7,5.52]
[1717205475362,5.52,166.76,166.68,8.9901716]
[1717205475363,2.2191,166.73,166.68,8.9901716]
[1717205475563,5.52,166.71,166.65,11.9339]
[1717205475769,5.52,166.71,166.66,9.0045859]
[1717205476356,5.52,166.7,166.65,9.0045859]
[1717205476558,5.52,166.69,166.64,9.0045859]
[1717205476762,5.52,166.7,166.64,14.5245859]
[1717205477181,5.52,166.7,166.63,9.0045859]
[1717205477374,5.52,166.7,166.64,5.52]
[1717205477766,5.52,166.71,166.65,5.69]
[1717205478974,5.52,166.71,166.65,5.52]
[1717205479489,5.52,166.7,166.64,5.52]
[1717205479981,5.52,166.7,166.62,27.00945925]
[1717205479982,5.52,166.7,166.62,27.00995872]
[1717205480158,5.52,166.68,166.62,14.52995872]
[1717205480366,5.52,166.68,166.61,15.17715872]
[1717205480564,5.52,166.68,166.62,5.52]
[1717205482292,5.52,166.68,166.61,15.51810649]
[1717205482474,5.52,166.68,166.62,5.86]
[1717205482891,5.52,166.67,166.61,9.01090649]
[1717205483188,2.2198,166.68,166.6,38.70290649]
[1717205483189,5.52,166.66,166.6,38.70290649]
[1717205483368,5.52,166.66,166.61,0.17]
[1717205483795,5.52,166.66,166.6,15.01290649]
[1717205484100,5.52,166.66,166.6,20.53290649]
[1717205484694,5.52,166.66,166.6,9.01090649]
[1717205484894,5.52,166.66,166.6,14.53090649]
[1717205485774,10.1887,166.64,166.59,9.01090649]
[1717205486097,5.52,166.63,166.59,9.01090649]
[1717205487584,5.52,166.63,166.59,9.01170668]
[1717205488101,10.1887,166.63,166.59,9.01170668]
[1717205488400,12.4091,166.63,166.58,9.01170668]
[1717205488579,5.52,166.62,166.58,9.01170668]
[1717205489384,5.52,166.61,166.58,9.01170668]
[1717205489602,5.52,166.6,166.58,9.01170668]
[1717205489788,7.7409,166.6,166.58,9.01170668]
[1717205490203,7.7409,166.6,166.57,9.01170668]
[1717205490695,6.8894,166.61,166.57,9.01170668]
[1717205490875,4.6687,166.61,166.57,9.01170668]
[1717205491191,5.52,166.6,166.57,9.01170668]
[1717205492697,7.7407,166.61,166.57,9.01170668]
[1717205494773,4.6687,166.63,166.57,9.01170668]
[1717205494774,7.7408,166.6,166.57,9.01170668]
[1717205494976,2.2208,166.6,166.57,9.01170668]
[1717205502504,15.2349,166.66,166.57,9.01170668]
[1717205502811,5.52,166.64,166.58,5.52]
[1717205503034,2.2206,166.62,166.57,14.53170668]
[1717205503890,2.2206,166.62,166.57,9.01170668]
[1717205504205,2.2206,166.62,166.58,5.52]
[1717205504407,2.2206,166.62,166.58,5.89873845]
[1717205504884,2.2206,166.62,166.58,5.52]
[1717205506787,2.2207,166.61,166.57,14.53212391]
[1717205506992,2.2207,166.61,166.57,9.01212391]
[1717205508103,2.2207,166.61,166.58,9.01212391]
[1717205508685,7.7406,166.62,166.59,0.46892334]
[1717205508897,2.2206,166.62,166.59,0.46892334]
[1717205509101,2.2205,166.63,166.58,14.53212391]
[1717205509413,2.2206,166.62,166.58,9.01212391]
[1717205513215,2.2206,166.62,166.59,9.01212391]
[1717205513404,2.2206,166.62,166.58,9.01212391]
[1717205514099,2.2206,166.62,166.59,9.01212391]
[1717205515119,2.2206,166.62,166.59,9.01209972]
[1717205517197,2.2206,166.62,166.6,9.01214793]
[1717205518810,2.2206,166.62,166.57,5.52]
[1717205519121,2.2206,166.62,166.61,9.01211848]
[1717205520126,7.7406,166.62,166.61,9.01211848]
[1717205523230,7.7406,166.62,166.55,5.52]
[1717205523417,5.52,166.61,166.56,5.7356671]
[1717205523714,5.52,166.61,166.57,5.7356671]
[1717205523899,2.221,166.59,166.58,5.7356671]
[1717205524104,7.741,166.59,166.58,5.7356671]
[1717205524704,5.52,166.59,166.58,5.7356671]
[1717205524913,7.7409,166.6,166.54,5.52]
[1717205525229,7.7409,166.6,166.55,5.73566592]
[1717205526428,5.52,166.6,166.55,5.73566592]
[1717205526603,6.6603,166.66,166.54,18.0]
[1717205526808,7.7406,166.63,166.57,5.52]
[1717205527006,7.7406,166.63,166.62,9.01239237]
[1717205527310,2.2206,166.63,166.62,9.01239237]
[1717205527517,9.1087,166.67,166.62,9.01239237]
[1717205527921,7.7404,166.63,166.62,9.01239237]
[1717205530629,2.2204,166.63,166.62,9.01239237]
[1717205530932,7.7404,166.63,166.62,9.01239237]
[1717205531126,2.2204,166.63,166.57,5.52]
[1717205531332,2.2204,166.63,166.58,11.9553]
[1717205532438,2.2204,166.63,166.54,16.1688]
[1717205532439,2.2206,166.62,166.57,5.52]
[1717205532915,7.7406,166.62,166.56,11.522]
[1717205533115,2.2206,166.62,166.56,11.522]
[1717205533336,7.7406,166.62,166.56,5.52]
[1717205533542,7.7406,166.62,166.56,11.522]
[1717205534031,7.7406,166.62,166.56,5.52]
[1717205534413,7.7406,166.62,166.56,11.522]
[1717205534719,7.7406,166.62,166.56,5.52]
[1717205535044,7.7406,166.62,166.54,40.6041]
[1717205535341,2.2206,166.62,166.57,5.52]
[1717205537224,7.7405,166.63,166.57,5.52]
[1717205538522,7.7403,166.64,166.58,5.52]
[1717205538723,7.7403,166.64,166.63,9.0119274]
[1717205539615,2.2203,166.64,166.63,9.0119274]
[1717205539812,7.7403,166.64,166.63,9.0119274]
[1717205543344,6.6593,166.69,166.63,9.0119274]
[1717205543641,2.2202,166.65,166.63,9.0119274]
[1717205544240,7.7402,166.65,166.63,9.0119274]
[1717205544452,2.2203,166.64,166.63,9.0119274]
[1717205544745,7.7403,166.64,166.63,9.0119274]
[1717205548529,7.7403,166.64,166.57,11.522]
[1717205548734,2.2203,166.64,166.63,9.01171662]
[1717205548935,7.7403,166.64,166.63,9.01171662]
[1717205550428,7.7403,166.64,166.63,9.01188465]
[1717205550947,5.52,166.64,166.63,9.01188465]
[1717205551928,2.2202,166.65,166.63,9.01188465]
[1717205552127,7.7402,166.65,166.63,9.01188465]
[1717205552843,2.2202,166.65,166.63,9.01188465]
[1717205553057,7.7402,166.65,166.63,9.01188465]
[1717205554143,2.2202,166.65,166.63,9.01188465]
[1717205554746,7.7401,166.66,166.63,9.01188465]
[1717205555454,2.2202,166.65,166.63,9.01188465]
[1717205556652,2.2202,166.65,166.63,9.01151623]
[1717205557943,2.2203,166.64,166.63,9.01151623]
[1717205558151,2.2203,166.64,166.63,9.01152333]
[1717205559028,2.2205,166.63,166.59,11.7878]
[1717205559234,2.2205,166.63,166.59,6.2678]
[1717205561344,7.7403,166.64,166.59,6.2678]
[1717205561547,7.7403,166.64,166.63,9.01153592]
[1717205563157,2.2203,166.64,166.63,9.01153592]
[1717205564243,2.2202,166.65,166.63,9.01153592]
[1717205565368,2.2202,166.65,166.63,9.01151623]
[1717205570451,2.2203,166.64,166.63,9.01151623]
[1717205571664,2.2203,166.64,166.6,12.0265]
[1717205572234,2.2203,166.64,166.6,6.5065]
[1717205574646,2.2201,166.66,166.61,6.5065]
[1717205575049,2.2201,166.66,166.62,5.52]
[1717205576068,2.2201,166.66,166.61,6.5065]
[1717205576069,2.2201,166.66,166.61,12.0265]
[1717205577364,2.2199,166.67,166.61,12.0265]
[1717205577548,2.2199,166.68,166.64,5.52]
[1717205578359,2.2199,166.67,166.64,5.52]
[1717205578652,2.2198,166.68,166.64,5.52]
[1717205580156,2.2197,166.69,166.64,12.1604]
[1717205580366,2.2197,166.69,166.64,6.6404]
[1717205580546,2.2197,166.69,166.64,12.1604]
[1717205580964,2.2198,166.68,166.64,6.6404]
[1717205581161,2.2198,166.68,166.64,12.1604]
[1717205581366,2.2197,166.69,166.64,12.1604]
[1717205583368,2.2197,166.69,166.64,6.6404]
[1717205583568,2.2197,166.69,166.64,12.1604]
[1717205584568,2.2195,166.71,166.66,5.52]
[1717205584956,2.2195,166.71,166.67,5.52]
[1717205585364,2.2191,166.73,166.68,5.52]
[1717205585578,2.2191,166.73,166.65,18.0]
[1717205585579,2.219,166.74,166.69,5.52]
[1717205585767,2.219,166.74,166.69,6.5891]
[1717205586153,2.2189,166.75,166.69,6.5891]
[1717205586573,2.219,166.74,166.69,6.5891]
[1717205587065,7.7389,166.75,166.69,6.5891]
[1717205587559,2.2189,166.75,166.71,5.52]
[1717205587873,2.2187,166.76,166.71,12.1091]
[1717205588381,4.6687,166.83,166.72,5.52]
[1717205588551,4.6687,166.83,166.73,6.12360632]
[1717205588552,2.2183,166.79,166.73,6.12360632]
[1717205588748,7.7383,166.79,166.74,0.60385296]
[1717205589677,2.2185,166.78,166.7,1.27237011]
[1717205589868,2.2186,166.77,166.72,5.52]
[1717205590782,2.2185,166.78,166.72,5.52]
[1717205590962,7.7385,166.78,166.72,6.79602424]
[1717205591379,2.2185,166.78,166.73,5.52]
[1717205591676,5.52,166.8,166.74,6.7983126]
[1717205591863,2.2182,166.8,166.74,6.7983126]
[1717205592590,2.2182,166.8,166.75,5.52]
[1717205592762,2.2182,166.8,166.76,1.27815928]
[1717205593275,2.2182,166.8,166.75,5.52]
[1717205595385,5.52,166.81,166.75,5.52]
[1717205595884,7.7381,166.81,166.75,5.52]
[1717205596377,2.2181,166.81,166.75,5.52]
[1717205596586,21.0406,166.88,166.76,6.79792933]
[1717205596791,5.52,166.82,166.77,1.2778527]
[1717205597289,7.7379,166.82,166.76,5.52]
[1717205598582,2.2181,166.81,166.72,136.1]
[1717205598884,2.2181,166.81,166.73,0.34]
[1717205599389,7.7379,166.82,166.73,0.34]
[1717205600096,2.2179,166.82,166.75,18.0]
[1717205601061,2.2178,166.83,166.75,18.0]
[1717205601270,7.7378,166.83,166.75,18.0]
[1717205601682,2.2179,166.82,166.75,18.0]
[1717205601988,2.2179,166.82,166.73,54.36]
[1717205602286,2.2179,166.82,166.72,82.08]
[1717205602287,7.7381,166.81,166.75,5.52]
[1717205602462,2.2182,166.8,166.74,5.52]
[1717205603287,7.7381,166.81,166.74,5.52]
[1717205603592,4.81104345,166.84,166.71,18.0]
[1717205603593,7.7382,166.8,166.71,18.0]
[1717205603893,2.2182,166.8,166.75,5.52]
[1717205604191,7.7381,166.81,166.75,5.52]
[1717205604790,4.4357,166.83,166.7,18.0]
[1717205605089,5.52,166.79,166.73,5.52]
[1717205605888,2.2182,166.8,166.75,5.52]
[1717205606270,2.2181,166.81,166.75,5.52]
[1717205606573,2.2182,166.8,166.75,5.52]
[1717205606776,2.2183,166.79,166.74,5.52]
[1717205606994,7.7383,166.79,166.74,5.52]
[1717205607767,5.52,166.79,166.74,5.52]
[1717205608372,7.7383,166.79,166.71,0.17]
[1717205608693,2.2183,166.79,166.74,5.52]
[1717205609392,7.7382,166.8,166.71,0.17]
[1717205609685,7.7382,166.8,166.74,5.52]
[1717205613104,7.7382,166.8,166.7,38.34]
[1717205613294,7.7382,166.8,166.73,5.52]
[1717205614092,7.7382,166.8,166.74,5.52]
[1717205615383,7.7382,166.8,166.7,0.34]
[1717205615589,7.7382,166.8,166.74,5.52]
[1717205616881,2.2182,166.8,166.74,5.52]
[1717205617398,7.7381,166.81,166.74,5.52]
[1717205617576,2.2181,166.81,166.76,5.52]
[1717205622100,2.2181,166.81,166.74,18.0]
[1717205622279,2.2181,166.81,166.75,0.34]
[1717205622981,2.2179,166.82,166.75,0.34]
[1717205623181,7.7379,166.82,166.75,0.34]
[1717205625302,2.2181,166.81,166.75,0.34]
[1717205630099,2.2181,166.81,166.73,18.0]
[1717205630488,2.2181,166.81,166.74,0.17]
[1717205630890,2.2181,166.81,166.73,18.0]
[1717205631092,7.7381,166.81,166.75,5.52]
[1717205631997,2.2181,166.81,166.76,5.52]
[1717205633795,2.2179,166.82,166.77,5.52]
[1717205634106,2.2179,166.82,166.78,5.52]
[1717205635200,2.2179,166.82,166.77,5.52]
[1717205635507,2.2179,166.82,166.74,18.0]
[1717205635508,2.2179,166.82,166.78,5.02]
[1717205636700,2.2179,166.82,166.74,114.0]
[1717205637005,2.2176,166.84,166.79,5.52]
[1717205637896,2.2178,166.83,166.79,5.52]
[1717205639391,2.2178,166.83,166.75,0.34]
[1717205639597,2.2178,166.83,166.79,5.52]
[1717205646030,2.2178,166.83,166.75,0.34]
[1717205646209,2.2178,166.83,166.78,5.52]
[1717205647121,2.218,166.82,166.75,0.34]
[1717205647310,7.7378,166.84,166.78,5.52]
[1717205647716,2.2178,166.83,166.78,5.52]
[1717205648424,7.7377,166.84,166.78,5.52]
[1717205651544,2.2177,166.84,166.78,5.52]
[1717205654026,2.2177,166.84,166.79,5.52]
[1717205656237,2.343691,166.84,166.79,5.52]
[1717205660019,0.125991,166.84,166.79,5.52]
[1717205660722,0.125991,166.84,166.8,5.52]
[1717205661554,0.125991,166.84,166.79,5.52]
[1717205661843,2.343691,166.84,166.77,18.17]
[1717205662023,2.343691,166.84,166.78,5.52]
[1717205662230,0.125991,166.84,166.79,5.52]
[1717205662843,2.343691,166.84,166.79,5.52]
[1717205664745,2.343691,166.84,166.77,0.17]
[1717205665045,2.343691,166.84,166.79,5.52]
[1717205665627,2.343691,166.84,166.78,5.52]
[1717205666426,2.2178,166.83,166.77,0.17]
[1717205666629,2.2178,166.83,166.79,5.52]
[1717205666830,2.2178,166.83,166.78,5.52]
[1717205668043,5.645991,166.84,166.76,18.17]
[1717205668239,2.343691,166.84,166.78,5.52]
[1717205670828,0.125991,166.84,166.78,5.52]
[1717205671030,0.125991,166.84,166.81,5.52]
[1717205674649,0.125991,166.84,166.77,78.0]
[1717205674849,0.125991,166.84,166.78,0.17]
[1717205675030,5.645991,166.84,166.78,5.52]
[1717205675225,5.645991,166.84,166.78,23.52]
[1717205675434,0.125991,166.84,166.8,5.52]
[1717205679135,0.125991,166.84,166.81,5.69]
[1717205679342,0.125991,166.84,166.82,5.52]
[1717205682551,0.125991,166.84,166.81,0.34]
[1717205682748,0.125991,166.84,166.82,5.52]
[1717205683460,0.125991,166.84,166.83,5.52]
[1717205683659,0.125991,166.84,166.82,5.52]
[1717205688566,0.125991,166.84,166.81,5.52]
[1717205691552,0.125991,166.84,166.82,5.52]
[1717205694858,0.125991,166.84,166.78,18.0]
[1717205695074,0.125991,166.84,166.81,5.52]
[1717205695576,0.125991,166.84,166.78,18.0]
[1717205695877,0.125991,166.84,166.78,5.52]
[1717205696455,7.863691,166.84,166.73,96.0]
[1717205696781,5.52,166.83,166.78,5.52]
[1717205696949,7.863691,166.84,166.78,5.52]
[1717205697453,7.863691,166.84,166.74,18.0]
[1717205697661,2.2178,166.83,166.73,96.0]
[1717205697854,4.6687,166.83,166.78,5.52]
[1717205700777,4.6687,166.83,166.75,18.0]
[1717205700978,4.6687,166.83,166.78,5.52]
[1717205701377,4.6687,166.83,166.74,0.17]
[1717205701683,5.52,166.82,166.76,5.52]
[1717205702486,7.738,166.82,166.76,5.52]
[1717205706585,5.52,166.81,166.76,5.52]
[1717205706980,5.52,166.81,166.71,18.0]
[1717205706981,10.1887,166.8,166.71,18.0]
[1717205707195,10.1887,166.8,166.73,5.52]
[1717205707481,10.1887,166.8,166.7,18.0]
[1717205707688,4.6687,166.8,166.74,5.52]
[1717205707883,10.1887,166.8,166.74,5.52]
[1717205708187,4.6687,166.8,166.75,5.52]
[1717205713797,2.218,166.81,166.75,5.52]
[1717205713987,2.218,166.81,166.76,5.52]
[1717205716792,2.343991,166.81,166.76,5.52]
[1717205717176,0.125991,166.81,166.75,78.17]
[1717205717392,0.125991,166.81,166.79,5.52]
[1717205717795,0.125991,166.81,166.8,5.52]
[1717205725504,0.125991,166.81,166.79,60.0]
[1717205725712,0.125991,166.81,166.8,5.52]
[1717205726096,0.125991,166.81,166.79,60.0]
[1717205726290,0.125991,166.81,166.8,5.52]
[1717205730004,0.125991,166.81,166.8,5.69]
[1717205730615,0.125991,166.81,166.8,23.69]
[1717205730909,0.125991,166.81,166.8,35.5574]
[1717205731486,0.125991,166.81,166.8,30.0374]
[1717205734915,0.125991,166.81,166.8,66.0374]
[1717205735395,0.125991,166.81,166.8,71.5574]
[1717205743008,0.125991,166.81,166.8,104.1173]
[1717205743235,0.125991,166.81,166.8,124.1173]
[1717205746027,2.2167,166.91,166.85,60.0]
[1717205746218,2.2167,166.91,166.87,5.52]
[1717205750034,2.2167,166.91,166.84,0.34]
[1717205750035,2.2167,166.91,166.84,18.34]
[1717205750220,6.8856,166.9,166.85,5.52]
[1717205750421,6.8856,166.9,166.83,36.0]
[1717205750620,6.8856,166.9,166.85,5.52]
[1717205753433,6.8856,166.9,166.81,78.0]
[1717205753622,12.4056,166.9,166.84,5.52]
[1717205753817,2.217,166.89,166.82,0.34]
[1717205754127,5.52,166.89,166.83,5.52]
[1717205755525,6.8858,166.88,166.83,5.52]
[1717205757046,7.7369,166.9,166.84,5.52]
[1717205757341,2.2169,166.9,166.84,5.52]
[1717205760447,2.217,166.89,166.84,5.52]
[1717205761545,6.8857,166.89,166.84,5.52]
[1717205762126,2.2171,166.88,166.84,5.52]
[1717205762328,2.2175,166.86,166.77,96.0]
[1717205762855,2.2175,166.86,166.81,5.52]
[1717205763035,7.7373,166.87,166.81,5.52]
[1717205764051,2.2173,166.87,166.79,60.0]
[1717205764253,2.2173,166.87,166.82,5.52]
[1717205766553,2.2173,166.87,166.8,0.17]
[1717205766727,6.886,166.87,166.82,5.52]
[1717205770557,6.886,166.87,166.79,0.34]
[1717205770760,6.886,166.87,166.82,5.52]
[1717205776965,6.886,166.87,166.79,0.34]
[1717205777144,6.886,166.87,166.82,5.52]
[1717205779867,5.52,166.83,166.72,91.08447827]
[1717205780180,2.2181,166.81,166.72,82.08]
[1717205780359,6.8868,166.81,166.76,5.52]
[1717205781059,4.6687,166.81,166.76,5.52]
[1717205782170,4.6687,166.81,166.72,109.08447827]
[1717205782473,4.6687,166.81,166.77,5.52]
[1717205783875,6.8867,166.81,166.73,0.17]
[1717205784049,6.8867,166.81,166.77,5.52]
[1717205787356,6.8867,166.81,166.78,45.0]
[1717205792054,6.8869,166.8,166.72,9.00550622]
[1717205792255,2.2184,166.79,166.71,9.00550622]
[1717205792452,8.78022711,166.79,166.73,5.52]
[1717205793287,8.78022711,166.79,166.71,9.00550622]
[1717205793477,8.78022711,166.79,166.73,5.52]
[1717205793657,7.7384,166.79,166.73,5.52]
[1717205794466,7.7384,166.79,166.71,9.00550622]
[1717205794663,7.7384,166.79,166.73,5.52]
[1717205794857,4.6687,166.78,166.74,45.0]
[1717205797779,4.6687,166.78,166.74,50.52]
[1717205798087,4.6687,166.78,166.74,45.0]
[1717205798259,4.6687,166.78,166.74,50.52]
[1717205800185,6.8872,166.78,166.74,50.52]
[1717205800681,6.8872,166.78,166.74,45.0]
[1717205800986,6.8872,166.78,166.73,5.52]
[1717205802685,4.6687,166.76,166.72,5.52]
[1717205802855,4.6687,166.76,166.73,45.0]
[1717205803260,6.8874,166.76,166.72,45.0]
[1717205803468,2.2188,166.75,166.72,45.0]
[1717205803666,2.2188,166.75,166.7,5.52]
[1717205803667,6.8875,166.75,166.7,5.52]
[1717205803864,6.8875,166.75,166.69,9.00688361]
[1717205803865,6.8877,166.74,166.69,14.52688361]
[1717205804177,6.8877,166.74,166.69,5.52]
[1717205805194,6.8877,166.74,166.7,45.0]
[1717205805385,4.6687,166.74,166.67,6.002]
[1717205805570,5.52,166.72,166.67,6.002]
[1717205806091,10.1887,166.72,166.67,6.002]
[1717205806290,12.4079,166.72,166.67,6.002]
[1717205806488,12.4079,166.72,166.66,9.00849949]
[1717205806788,1.04182711,166.71,166.68,45.0]
[1717205806978,12.4079,166.72,166.67,45.0]
[1717205809969,12.4079,166.72,166.66,50.52]
[1717205811073,2.2194,166.71,166.65,15.01049949]
[1717205811277,6.8881,166.71,166.66,5.52]
[1717205811473,2.2196,166.7,166.61,9.00849949]
[1717205811763,10.1887,166.71,166.58,22.6365]
[1717205811764,2.2196,166.69,166.65,5.52]
[1717205812586,2.2196,166.69,166.66,45.0]
[1717205813180,2.2195,166.7,166.66,45.0]
[1717205814182,6.8879,166.73,166.68,5.52]
[1717205814379,4.6687,166.73,166.69,45.0]
[1717205814874,4.6687,166.77,166.69,45.0]
[1717205815075,2.2189,166.75,166.7,5.52]
[1717205815305,2.2189,166.75,166.71,50.52]
[1717205815600,2.2189,166.75,166.72,45.0]
[1717205821100,2.219,166.74,166.72,45.0]
[1717205821493,2.2191,166.73,166.72,45.0]
[1717205821692,2.2191,166.73,166.64,31.09098716]
[1717205821693,2.2191,166.73,166.68,5.52]
[1717205821898,2.2191,166.73,166.69,45.0]
[1717205822115,5.52,166.74,166.69,45.0]
[1717205822582,2.2191,166.73,166.69,45.0]
[1717205824002,7.7393,166.72,166.69,45.0]
[1717205824185,7.7393,166.72,166.68,45.0]
[1717205824383,7.7393,166.72,166.67,45.0]
[1717205825275,2.2194,166.71,166.67,45.0]
[1717205826310,2.2194,166.71,166.59,51.0209]
[1717205826311,7.7395,166.7,166.64,5.52]
[1717205827293,2.2196,166.69,166.59,84.11378716]
[1717205827615,7.7395,166.7,166.64,5.52]
[1717205827814,7.7395,166.7,166.65,45.0]
[1717205828183,2.2195,166.7,166.65,50.52]
[1717205829099,2.2195,166.7,166.66,5.52]
[1717205829298,2.2195,166.7,166.67,50.52]
[1717205829512,2.2195,166.7,166.67,5.52]
[1717205829691,4.6687,166.76,166.68,45.0]
[1717205830004,5.52,166.74,166.68,50.52]
[1717205830379,2.2193,166.72,166.68,50.52]
[1717205832211,2.2193,166.72,166.68,45.0]
[1717205832881,5.52,166.74,166.68,45.0]
[1717205832882,2.2191,166.74,166.68,45.0]
[1717205833078,2.2191,166.74,166.7,5.52]
[1717205833342,2.2191,166.74,166.71,45.0]
[1717205834994,2.2191,166.74,166.71,50.52]
[1717205836193,4.6687,166.8,166.71,45.0]
[1717205836400,4.6687,166.8,166.73,5.52]
[1717205836594,2.2185,166.78,166.74,50.52]
[1717205836794,2.2185,166.78,166.74,45.0]
[1717205836994,2.2185,166.78,166.74,50.52]
[1717205837202,2.2186,166.77,166.74,45.0]
[1717205837515,2.2187,166.76,166.74,45.0]
[1717205838012,2.2187,166.76,166.73,45.0]
[1717205838215,2.2186,166.77,166.73,45.0]
[1717205841124,2.2187,166.76,166.73,45.0]
[1717205841308,2.2187,166.76,166.72,45.0]
[1717205843023,7.7386,166.78,166.72,50.52]